Cogmind - Beta 10.1 @@@ ROGUE MODE // 2020.10.25 @ 00:44:17 Player: Joking_Phantom Result: Self-destructed Performance ------------- Evolutions (3) 1500 Regions Visited (6) 1200 Robots Destroyed (33) 165 Value Destroyed (781) 781 Prototype IDs (23) 460 Alien Tech Used (0) 0 Bonus (370) 370 TOTAL SCORE: 4476 Bonus ------- Follower Combat Kills 70 Aligned with FarCom 300 Cogmind --------- Core Integrity 604/700 Matter 300/300 Energy 16/100 System Corruption 0% Temperature Cool (36) Movement Treading (200) Ox2 Location -7/Factory Parts ------- > --- POWER (1) -------- (None) > --- PROPULSION (4) --- Light Treads Light Treads > --- UTILITY (6) ------ Humpback Transmission Jammer > --- WEAPON (2) ------- Heavy Laser > --- INVENTORY (24) --- Airjet Airjet Coolant Injector Medium Storage Unit Large Storage Unit Large Storage Unit High-capacity Storage Unit Humpback Superbattery (1918) High-capacity Matter Pod (200) Signal Interpreter Guided Plasma Cannon Grenade Launcher Plasma Cutter Mace Power Maul Explosive Trap Deploy-a-Sentry Deploy-a-Sentry Peak State ------------ > --- POWER ------------ Light Nuclear Core > --- PROPULSION ------- Wheel Wheel > --- UTILITY ---------- Humpback Transmission Jammer > --- WEAPON ----------- Heavy Laser Heavy Laser > --- INVENTORY -------- Light Treads Light Treads Airjet Airjet Coolant Injector Large Storage Unit Large Storage Unit High-capacity Storage Unit Humpback Superbattery High-capacity Matter Pod Signal Interpreter Guided Plasma Cannon Grenade Launcher Plasma Cutter Mace Power Maul Explosive Trap Deploy-a-Sentry Deploy-a-Sentry [Rating: 24] Favorites ----------- Power Light Ion Engine Engine Light Ion Engine Power Core Light Nuclear Core Propulsion Wheel Treads Light Treads Leg Aluminum Leg Wheel Wheel Hover Unit Improved Hover Unit Utility Large Storage Unit Device Transmission Jammer Storage Large Storage Unit Weapon Assault Rifle Energy Gun Heavy Laser Energy Cannon Plasma Cannon Ballistic Gun Assault Rifle Impact Weapon Mace Build | -11 -10 -10 -10 -9 -8 -7 ------- Run | Scr Mat Min Exi Min Mat Fac Slots Evolved 6 | . . . . . 4 2 Power . | . . . . . . . Propulsion 2 | . . . . . . 2 Utility 4 | . . . . . 4 . Weapon . | . . . . . . . Parts Attached 29 | 3 10 2 3 1 2 8 Power 4 | . 2 . 1 . . 1 Engine 3 | . 2 . 1 . . . Core 1 | . . . . . . 1 Reactor . | . . . . . . . Propulsion 12 | 2 4 2 . 1 . 3 Treads 2 | . . . . . . 2 Leg . | . . . . . . . Wheel 8 | 2 2 2 . 1 . 1 Hover 2 | . 2 . . . . . Flight . | . . . . . . . Utility 7 | 1 2 . 2 . 1 1 Device 1 | . . . . . . 1 Storage 6 | 1 2 . 2 . 1 . Processor . | . . . . . . . Hackware . | . . . . . . . Protection . | . . . . . . . Artifact . | . . . . . . . Weapon 6 | . 2 . . . 1 3 Energy Gun 2 | . . . . . . 2 Energy Cannon 1 | . . . . . . 1 Ballistic Gun 2 | . 1 . . . 1 . Ballistic Cannon . | . . . . . . . Launcher . | . . . . . . . Special Weapon . | . . . . . . . Impact Weapon 1 | . 1 . . . . . Slashing Weapon . | . . . . . . . Piercing Weapon . | . . . . . . . Special Melee Weapon . | . . . . . . . Unidentified Prototypes . | . . . . . . . Parts Lost 9 | . . . . . 1 8 Power 2 | . . . . . . 2 Propulsion 3 | . . . . . . 3 Utility . | . . . . . . . Weapon 4 | . . . . . 1 3 Highest Loss Streak 6 | . . . . . 1 6 Average Slot Usage (%) 85 | . 100 100 97 85 53 50 Engine 12 | . 14 14 14 14 9 4 Wheel 24 | . 22 28 28 28 18 19 Hover 1 | . 5 . . . . . Storage 19 | . 28 28 25 14 9 7 Ballistic Gun 23 | . 25 28 28 28 17 8 Naked Turns . | . . . . . . . Heaviest Build 91 | 15 39 39 87 87 87 91 Greatest Support 40 | 20 20 20 20 20 20 40 Greatest Overweight (x) 4 | . 1 1 4 4 4 3 Average Overweight (x) 1 | . . 1 1 4 4 2 Largest Inventory Capacity 24 | 8 16 16 24 24 24 24 Average Capacity 19 | 7 14 16 17 24 24 24 Most Carried 22 | 7 14 16 19 21 20 22 Average Carried 15 | 6 10 14 15 19 18 18 Final Capacity 24 | 8 16 16 24 24 24 24 Final Carried 20 | 7 14 16 19 20 17 20 Class Distribution -------------------- 54% | Mutant 41% | Hauler-Mutant 3% | Scavenger-Mutant Dominant Class ---------------- Mutant | -10/Materials Mutant | -10/Mines Mutant | -10/Exiles Hauler-Mutant | -9/Mines Hauler-Mutant | -8/Materials Hauler-Mutant | -7/Factory Resources | -11 -10 -10 -10 -9 -8 -7 ----------- Run | Scr Mat Min Exi Min Mat Fac Matter Collected 979 | 236 298 258 30 64 30 63 Remotely . | . . . . . . . Salvage Created 1202 | 99 376 372 . 48 30 277 Parts 73 | 3 34 18 . 2 5 11 Haulers Intercepted . | . . . . . . . Recyclers Shooed 1 | . . 1 . . . . Parts Field Recycled . | . . . . . . . Retrieved Matter . | . . . . . . . Parts Self-Destructed . | . . . . . . . Prevented . | . . . . . . . Kills | -11 -10 -10 -10 -9 -8 -7 ------- Run | Scr Mat Min Exi Min Mat Fac Combat Hostiles Destroyed 24 | . 11 4 . 2 2 5 Guns 22 | . 11 4 . 2 2 3 Cannons 2 | . . . . . . 2 Classes Destroyed 10 | 1 4 2 . 1 1 1 Worker 2 | . 1 . . 1 . . Builder 1 | . . 1 . . . . Tunneler 1 | . . 1 . . . . Recycler 3 | 1 . 2 . . . . Watcher 2 | . 2 . . . . . Swarmer 7 | . 6 . . . 1 . Grunt 13 | . 5 4 . . . 4 Duelist 1 | . . . . . 1 . Sentry 1 | . . . . . . 1 Assembled 2 | . . . . 2 . . Best Kill Streak 3 | 1 3 2 . 1 1 2 Combat Bots Only 3 | . 3 2 . 1 1 2 Max Kills in Single Turn 2 | 1 2 1 . 1 1 1 Gunslinging 1 | . 1 . . . . . Exploded . | . . . . . . . Melee . | . . . . . . . Uniques/NPCs Destroyed . | . . . . . . . Combat | -11 -10 -10 -10 -9 -8 -7 -------- Run | Scr Mat Min Exi Min Mat Fac Damage Taken 1408 | . 346 129 . 93 51 789 Core 285 | . 126 31 . 26 6 96 Absorbed by Shields . | . . . . . . . Core Remaining (%) 74 | 100 . . . 26 98 . Volleys Fired 103 | 2 33 23 . 9 4 32 Largest 2 | 2 2 2 . 2 2 2 Hottest 138 | 70 40 40 . 40 40 138 Shots Fired 186 | 4 66 46 . 18 7 45 Gun 175 | 4 66 46 . 18 7 34 Cannon 11 | . . . . . . 11 Launcher . | . . . . . . . Special . | . . . . . . . Kinetic 151 | 2 66 46 . 18 7 12 Thermal 35 | 2 . . . . . 33 Explosive . | . . . . . . . Electromagnetic . | . . . . . . . Robot Hit Streak 13 | 3 13 13 . 5 7 8 Robot Miss Streak 4 | . 4 2 . 1 2 4 Penetration Max . | . . . . . . . Secondary Targets 2 | . 2 . . . . . Max Gunslinging Chain 1 | . 1 . . . . . Shots Hit Robots 118 | 3 42 31 . 11 3 28 Core Hits 55 | 2 19 15 . 5 3 11 Critical Hits 1 | . . 1 . . . . Critical Kills . | . . . . . . . Critical Parts Destroyed 1 | . . 1 . . . . Melee Attacks 3 | . 3 . . . . . Impact 3 | . 3 . . . . . Slashing . | . . . . . . . Piercing . | . . . . . . . Sneak Attacks . | . . . . . . . Combat Hostiles . | . . . . . . . Follow-up Attacks . | . . . . . . . Damage Inflicted 1651 | 35 507 437 . 92 47 533 Guns 1500 | 35 507 437 . 92 47 382 Cannons 151 | . . . . . . 151 Explosions . | . . . . . . . Melee . | . . . . . . . Ramming . | . . . . . . . Kinetic 1142 | 23 507 437 . 92 47 36 Thermal 509 | 12 . . . . . 497 Explosive . | . . . . . . . Electromagnetic . | . . . . . . . Impact . | . . . . . . . Slashing . | . . . . . . . Piercing . | . . . . . . . Highest Corruption . | . . . . . . . Average Corruption . | . . . . . . . Corruption Purged . | . . . . . . . Overload Shots . | . . . . . . . Overflow Damage . | . . . . . . . Projectiles . | . . . . . . . Explosions . | . . . . . . . Melee . | . . . . . . . Knockbacks . | . . . . . . . Impact . | . . . . . . . Kinetic . | . . . . . . . Secondary . | . . . . . . . Self-Inflicted Damage . | . . . . . . . Shots . | . . . . . . . Rammed . | . . . . . . . Targets Rammed . | . . . . . . . Kicked . | . . . . . . . Crushed . | . . . . . . . Highest Temperature 332 | 18 5 6 . . . 332 Average Temperature 124 | 10 4 2 . . . 146 Received Heat Transfer 549 | . 108 75 . . 9 357 Effects 1 | . . . . . . 1 Interference 1 | . . . . . . 1 Siege Activations . | . . . . . . . Robots Corrupted . | . . . . . . . Combat Hostiles . | . . . . . . . Parts Fried . | . . . . . . . Impact Corruptions . | . . . . . . . Robots Melted . | . . . . . . . Combat Hostiles . | . . . . . . . Parts Melted 3 | . . . . . . 3 Heat Transferred 1003 | 37 . . . . . 966 Parts Sabotaged . | . . . . . . . Parts Stolen . | . . . . . . . Parts Stripped . | . . . . . . . Power Chain Reactions . | . . . . . . . Missiles Intercepted . | . . . . . . . Alert | -11 -10 -10 -10 -9 -8 -7 ------- Run | Scr Mat Min Exi Min Mat Fac Peak Influence 372 | 5 372 236 . 20 119 172 Initial 86 | . 3 86 . . . 53 Average 106 | 4 185 180 . 10 46 90 Maximum Alert Level 1 | . 1 1 . . . . Low Security (%) 75 | 100 50 42 . 100 100 100 Level 1 24 | . 49 57 . . . . Level 2 . | . . . . . . . Level 3 . | . . . . . . . Level 4 . | . . . . . . . Level 5 . | . . . . . . . High Security . | . . . . . . . Max Security . | . . . . . . . Squads Dispatched 4 | . 3 . . . . 1 Investigation 3 | . 3 . . . . . Extermination . | . . . . . . . Reinforcement 1 | . . . . . . 1 Assault . | . . . . . . . Garrison . | . . . . . . . Intercept . | . . . . . . . Construction Impeded . | . . . . . . . Haulers Reinforced . | . . . . . . . Stealth | -11 -10 -10 -10 -9 -8 -7 --------- Run | Scr Mat Min Exi Min Mat Fac Distress Signals 1 | . 1 . . . . . Communications Jammed . | . . . . . . . Distress Signals . | . . . . . . . Times Spotted 35 | . 15 4 . 2 7 7 Peak Tracking Total 3 | . 3 2 . 1 3 3 Tactical Retreats . | . . . . . . . Traps | -11 -10 -10 -10 -9 -8 -7 ------- Run | Scr Mat Min Exi Min Mat Fac Traps Triggered 2 | . 2 . . . . . Indirectly . | . . . . . . . Trap Hack Attempts . | . . . . . . . Triggered . | . . . . . . . Disarmed . | . . . . . . . Reprogrammed . | . . . . . . . Reused 2 | . . . . . 2 . Traps Extracted . | . . . . . . . Installed 2 | . . . . . 2 . Triggered 3 | . . . . 1 2 . Machines | -11 -10 -10 -10 -9 -8 -7 ---------- Run | Scr Mat Min Exi Min Mat Fac Machines Disabled 1 | . . . . . . 1 Max in Single Turn 1 | . . . . . . 1 Machines Sabotaged . | . . . . . . . Garrisons Compromised . | . . . . . . . Overloaded Fab Kills . | . . . . . . . Fab Network Shutdowns . | . . . . . . . Hacking | -11 -10 -10 -10 -9 -8 -7 --------- Run | Scr Mat Min Exi Min Mat Fac Machines Accessed 11 | . 6 . 3 1 . 1 Terminals 6 | . 4 . . 1 . 1 Fabricators . | . . . . . . . Repair Stations . | . . . . . . . Recycling Units 2 | . 2 . . . . . Scanalyzers . | . . . . . . . Garrison Access . | . . . . . . . Total Hacks 19 | . 10 . 4 3 . 2 Successful 11 | . 3 . 4 2 . 2 Failed 8 | . 7 . . 1 . . Catastrophic 3 | . 3 . . . . . Database Lockouts . | . . . . . . . Manual 10 | . 6 . 1 3 . . Terminals 13 | . 8 . . 3 . 2 Fabricators . | . . . . . . . Repair Stations . | . . . . . . . Recycling Units 2 | . 2 . . . . . Scanalyzers . | . . . . . . . Garrison Access . | . . . . . . . Terminal Hacks 9 | . 1 . 4 2 . 2 Record 4 | . . . 3 . . 1 Level Access Points 1 | . . . . 1 . . Locate Traps 1 | . . . . . . 1 Zone Layout 2 | . 1 . . 1 . . EX-Prototype ID Bank 1 | . . . 1 . . . Fabricator Hacks . | . . . . . . . Repair Station Hacks . | . . . . . . . Recycling Unit Hacks . | . . . . . . . Scanalyzer . | . . . . . . . Garrison Access Hacks . | . . . . . . . Unauthorized Hacks 2 | . 2 . . . . . Terminals . | . . . . . . . Fabricators . | . . . . . . . Repair Stations . | . . . . . . . Recycling Units 2 | . 2 . . . . . Tunnel 2 | . 2 . . . . . Scanalyzers . | . . . . . . . Garrison Access . | . . . . . . . Data Cores Recovered . | . . . . . . . Used . | . . . . . . . Hacking Detections 5 | . 4 . . . . 1 Full Trace Events . | . . . . . . . Feedback Events . | . . . . . . . Feedback Blocked . | . . . . . . . Robot Schematics Acquired . | . . . . . . . Robots Built . | . . . . . . . Matter . | . . . . . . . Time . | . . . . . . . Total Robot Build Rating . | . . . . . . . Part Schematics Acquired . | . . . . . . . Parts Built . | . . . . . . . Matter . | . . . . . . . Time . | . . . . . . . Total Part Build Rating . | . . . . . . . Parts Repaired . | . . . . . . . Time . | . . . . . . . Parts Recycled . | . . . . . . . Recycled Matter . | . . . . . . . Retrieved Matter . | . . . . . . . Retrieved Components . | . . . . . . . Parts Scanalyzed . | . . . . . . . Part Schematics Acquired . | . . . . . . . Parts Damaged . | . . . . . . . Bothacking | -11 -10 -10 -10 -9 -8 -7 ------------ Run | Scr Mat Min Exi Min Mat Fac Used RIF Installer . | . . . . . . . Robots Hacked . | . . . . . . . Non-combat . | . . . . . . . Combat . | . . . . . . . Robot Hacks Applied . | . . . . . . . Relay Couplers Released . | . . . . . . . Robots Rewired . | . . . . . . . Allies Hacked . | . . . . . . . Hacks Repelled . | . . . . . . . Allies | -11 -10 -10 -10 -9 -8 -7 -------- Run | Scr Mat Min Exi Min Mat Fac Total Allies . | . . . . . . . Largest Group . | . . . . . . . Highest-Rated Group . | . . . . . . . Highest-Rated Ally . | . . . . . . . Total Orders . | . . . . . . . Ally Attacks 4 | . . . . . 4 . Total Damage 260 | . . . . . 260 . Kills 2 | . . . . . 2 . Allies Corrupted . | . . . . . . . Allies Melted . | . . . . . . . Turrets Deployed 1 | . . . . . 1 . Intel | -11 -10 -10 -10 -9 -8 -7 ------- Run | Scr Mat Min Exi Min Mat Fac Robot Analysis Total . | . . . . . . . Derelict Logs Recovered 2 | . . 1 . 1 . . Drone Launches . | . . . . . . . Drone Recoveries . | . . . . . . . Exploration | -11 -10 -10 -10 -9 -8 -7 ------------- Run | Scr Mat Min Exi Min Mat Fac Turns Passed 2390 | 28 471 406 453 492 195 345 Spaces Moved 1977 | 17 415 361 446 386 122 230 Core . | . . . . . . . Treads 10 | . . . . . . 10 Legs 7 | 7 . . . . . . Wheels 1848 | 10 303 361 446 386 122 220 Hover 112 | . 112 . . . . . Flight . | . . . . . . . Fastest Speed 56 | 80 56 90 80 120 120 100 Average Speed 99 | 96 80 90 95 120 120 107 Slowest Speed 200 | 120 90 90 120 120 120 200 Overloaded Moves . | . . . . . . . Propulsion Burnouts . | . . . . . . . Robots Hopped . | . . . . . . . Cave-ins Triggered . | . . . . . . . Exploration Rate (%) 48 | 2 66 69 90 84 18 10 Regions Visited 6 Branch Regions 3 Pre-discovered Areas 2 | . 2 . . . . . Known Exits Taken 2 | . . . . 1 1 . Unknown Exits Taken 4 | 1 1 1 1 . . . Scrap Searched 3 | . . 2 . 1 . . Spaces Dug 3 | . 3 . . . . . Terrain Destroyed 3 | . 3 . . . . . Melee 3 | . 3 . . . . . Projectile . | . . . . . . . AOE . | . . . . . . . Terrain Rammed . | . . . . . . . Walls Destroyed . | . . . . . . . Machines Disabled . | . . . . . . . Actions | -11 -10 -10 -10 -9 -8 -7 --------- Run | Scr Mat Min Exi Min Mat Fac Total 2222 | 22 479 396 478 397 166 284 Wait 43 | . 3 4 2 . 31 3 Move 1971 | 16 414 360 445 385 121 230 Hop . | . . . . . . . Pick Up 46 | 1 10 4 20 1 1 9 Fast Attach 7 | 1 1 . 1 . 1 3 Attach 7 | . 1 . . . 1 5 Detach 1 | . . . . . 1 . Swap 15 | 2 8 2 2 1 . . Drop 24 | . 6 3 8 1 4 2 Fire 103 | 2 33 23 . 9 4 32 Melee 3 | . 3 . . . . . Ram . | . . . . . . . Kick . | . . . . . . . Crush . | . . . . . . . Escape Stasis . | . . . . . . . Rewire . | . . . . . . . Trap 2 | . . . . . 2 . Miscellaneous . | . . . . . . . Route ------- -11/Scrapyard -10/Materials (discovered 4 exits: [*Mat x3] / [*Min]) -10/Mines (discovered 3 exits: [*Mat x2] / *Exi) -10/Exiles (discovered 2 exits: *Min x2) -9/Mines (discovered 2 exits: *Mat x2) -8/Materials -7/Factory (discovered 1 exit: [*Low]) History --------- Turn | Location | Event 7 | -11/Scrapyard | Discovered new exit (range 3) 29 | -11/Scrapyard | Entered Materials 217 | -10/Materials | Discovered new exit (range 16) 311 | -10/Materials | Build established: Mutant 312 | -10/Materials | Discovered new exit (range 10) 444 | -10/Materials | Discovered new exit (range 9) 473 | -10/Materials | Core integrity fell below 50% 477 | -10/Materials | Discovered new exit (range 8) 500 | -10/Materials | Entered Mines 528 | -10/Mines | Learned Materials terminal intel 602 | -10/Mines | Discovered new exit (range 5) 673 | -10/Mines | Discovered new exit (range 5) 808 | -10/Mines | Found a hidden stash of uninstalled traps 902 | -10/Mines | Deemed a non-threat by the Exiles lab entrance 902 | -10/Mines | Discovered new exit (range 5) 906 | -10/Mines | Entered Exiles 918 | -10/Exiles | Discovered new exit (range 15) 928 | -10/Exiles | Met 8R-AWN 943 | -10/Exiles | Met EX-HEX 1000 | -10/Exiles | Met EX-DEC 1019 | -10/Exiles | Visited The Gauntlet 1126 | -10/Exiles | Met EX-BIN 1141 | -10/Exiles | Aligned with FarCom system 1142 | -10/Exiles | Given EX-Vault access code 1180 | -10/Exiles | Opened EX-Vault 1192 | -10/Exiles | Found Deploy-a-Sentry 1194 | -10/Exiles | Found Deploy-a-Sentry 1196 | -10/Exiles | Found Deploy-a-Sentry 1198 | -10/Exiles | Found Superbattery 1201 | -10/Exiles | Found Gui. Plasma Cannon 1223 | -10/Exiles | Warned to stay clear of 0b10 Research branches 1343 | -10/Exiles | Discovered new exit (range 15) 1359 | -10/Exiles | Stole three prototypes: Superbattery, Gui. Plasma Cannon, Deploy-a-Sentry 1359 | -10/Exiles | Entered Mines 1382 | -9/Mines | Assembled infested the area 1387 | -9/Mines | Assisted by a Guerilla fighting off Assembled 1482 | -9/Mines | Met a Derelict bent on vengeance 1485 | -9/Mines | Identified exit to Materials 1607 | -9/Mines | Build established: Hauler-Mutant 1851 | -9/Mines | Entered Materials 1851 | -8/Materials | Evolved 4 slots: Utility x4 1852 | -8/Materials | Identified exit to Factory 1853 | -8/Materials | Loaded intel: 12 terminal locations 1945 | -8/Materials | DAS Turret deployed 2046 | -8/Materials | Entered Factory 2046 | -7/Factory | Evolved 2 slots: Propulsion x2 2048 | -7/Factory | FarCom data flow suspended 2333 | -7/Factory | Discovered new exit (range 2) 2374 | -7/Factory | Lost 6 parts (1p3n2w) 2391 | -7/Factory | Self-destructed Last Messages --------------- 02337_ Lgt. Assault Rifle destroyed. 02337_ Wheel destroyed. 02342_ Y-54 Guardian heat damages Flak Gun, Imp. Heat Sink, Imp. Heat Sink. 02343_ Hvy. Laser destroyed. 02343_ Lgt. Nuclear Core destroyed. 02346_ Y-54 Guardian heat short circuits Gatling Laser. 02350_ Lgt. Treads melted. 02350_ Y-54 Guardian destroyed. 02354_ Acquired 20 matter. 02365_ R-06 Scavenger collects Imp. Heat Sink. 02369_ R-06 Scavenger collects Broken Gatling Laser. 02374_ Acquired Med. Storage Unit. 02375_ Dropped Superbattery. 02376_ Extracted 84 energy. 02376_ Acquired Superbattery. 02380_ Lgt. Nuclear Core melted. 02380_ G-47 Trooper destroyed. 02385_ R-06 Scavenger collects Aluminum Leg. 02389_ R-06 Scavenger collects Imp. Heat Sink. Map ----- +----------------------------------------------------+ | ?????????????????????????????????????????????????? | | ?????????????????????????????????????????????????? | | "?"??????????????????????????????????????????????? | | ?????????????????????????????????????????????? | | " ""???#?????????????????????????????????????????? | | " """ +?????????????????????????????????????????? | | " """ #?????????????????????????????????????????? | | #?????????????????????????????????????????? | | #?????????????????????????????????????????? | | #???????????????????????????????????????????? | | #???????????????????????????????????????????? | | #???????????????????????????????????????????? | | ######???????????????????????????????????????????? | | #????????????????????????????????????????????????? | | #?????????????????###???####?????????????????????? | | #?????????????????# ??? ?????????????????????? | | #######??????????## ?? ???#?????????????????? | | # ???????????+ ? #?????????????????? | | # ???????????# #?????????????????? | | # ##+#######??# """r""" #?????????????????? | | # # #??# """r""" #?????????????????? | | # # """ #??# g""" """ #?????????????????? | | # # """ #??# #?????????????????? | | # # """ #??# | #?????????????????? | | # # #??# #?????????????????? | | # # ! """ #??# ! @! +?????????????????? | | "" + + / """ #??# #?????????????????? | | S"" # # """ #??#####+####/###?????????????????? | | "" # # #?????## ##???#???????????????????? | | ##### ################ % ### ## #????????????? | | ????# #?#! """"" +